[Event "Catalonia Championship Absolut"]
[Site "Salou Tarragona"]
[Date "2024.05.11"]
[Round "1.1"]
[White "Lorenzo De La Riva, Lazaro"]
[Black "Lemeshev, Ilya"]
[Result "1-0"]
[ECO "B12"]
[WhiteElo "2422"]
[BlackElo "2313"]
[Annotator "TA"]
[PlyCount "79"]
[EventDate "2024.05.06"]
[EventType "k.o."]
[EventCountry "ESP"]
[SourceTitle "playchess.com"]
[Source "ChessBase"]
[SourceQuality "1"]
[TimeControl "5400+30"]

{[%evp 12,79,10,7,18,18,20,27,22,21,37,45,47,39,47,46,38,14,32,32,36,43,49,-6,59,16,96,75,82,83,100,81,107,108,126,126,125,131,173,99,214,210,252,252,454,442,487,514,495,499,572,557,537,541,923,867,802,555,1194,519,537,537,537,532,512,492,29979,29980,29988,29989]} 1. e4 {[%emt 0:00:12]} c6 {[%emt 0:00:06]} 2. d4 {[%emt 0:00:11]} d5 {[%emt 0:00:08]} 3. e5 {[%emt 0:00:12]} Bf5 {[%emt 0:00:11]} 4. h4 {[%emt 0:00:20]} h5 {[%emt 0:01:51]} 5. Bd3 {[%emt 0:00:03]} Bxd3 {[%emt 0:00:42]} 6. Qxd3 {[%emt 0:00:03]} e6 {[%emt 0:00:13]} 7. Nf3 {[%emt 0:00:08]} Ne7 {[%emt 0:06:33][%cal Oc6c5]} 8. Bg5 {[%emt 0:00:09] Black is weak on the dark squares} Qb6 {[%emt 0:00:40]} 9. Nbd2 {[%emt 0:00:04][%cal Bb1d2,Bd2f1,Bf1e3][%mdl 32]} Nf5 {[%emt 0:01:38][%cal Oc6c5] White has an edge.} 10. O-O {[%emt 0:00:08]} Be7 {[%emt 0:02:26]} 11. Bxe7 {[%emt 0:00:34]} Nxe7 {[%emt 0:00:09]} 12. c4 {[%emt 0:00:06]} Nf5 {[%emt 0:03:11]} 13. Rfc1 {[%emt 0:07:06] Strongly threatening cxd5.} O-O {[%emt 0:07:07]} 14. Nf1 {[%emt 0:00:35]} Qd8 {[%emt 0:13:41]} 15. g3 {[%emt 0:00:36]} dxc4 {[%emt 0:02:34]} 16. Rxc4 {[%emt 0:00:08]} Na6 {[%emt 0:02:21][%cal Oc6c5]} 17. Ng5 {[%emt 0:02:31]} (17. Rd1 $14) 17... Qd7 {[%emt 0:04:30]} (17... b5 $1 $11 18. Rc3 (18. Rxc6 $2 Nb4 $19) 18... Qxd4 (18... Nxd4 19. Qh7#)) 18. Ne3 {[%emt 0:02:06]} Rae8 {[%emt 0:03:12]} (18... Nc7 $1 $11 {keeps the balance.}) 19. Qe2 $16 {[%emt 0:01:42]} f6 {[%emt 0:02:18]} 20. exf6 $40 {[%emt 0:00:35][%mdl 128] White goes for the king.} gxf6 {[%emt 0:00:19]} 21. Ne4 {[%emt 0:03:25][%cal Bg5e4,Be4d6,Bd6f5][%mdl 32]} Nxe3 {[%emt 0:05:55]} 22. Qxe3 {[%emt 0:01:55]} Qg7 {[%emt 0:00:52] Dodges Qh6} 23. Nd6 {[%emt 0:02:26]} Re7 {[%emt 0:00:15]} 24. Re1 {[%emt 0:00:02] White has more active pieces.} Qh7 {[%emt 0:03:30] Inhibits Nf5.} 25. Qf3 {[%emt 0:08:36]} (25. Ra4 $18) 25... Qg6 {[%emt 0:05:55]} (25... f5 $16) 26. Ra4 {[%emt 0:01:52]} Qc2 {[%emt 0:03:18]} 27. b3 {[%emt 0:00:53]} Nb4 $2 {[%emt 0:00:21] [#]} (27... Qd2 28. Rd1 Qc2 29. Nxb7 (29. Qxh5 Nc7 $18) 29... Nc7) 28. Nf5 $18 {[%emt 0:11:27]} (28. Rxb4 Qd2 29. Rxb7 Qxe1+ 30. Kg2 Rxb7 31. Nxb7 e5 $11) (28. Rxa7 Qh7 29. Ne4 Qg6 $18) (28. Qxh5 Nd3 29. Rf1 Rg7 $16) 28... Ree8 {[%emt 0:01:19]} 29. Nh6+ {[%emt 0:00:40]} (29. Rxb4 exf5 30. Rxe8 Rxe8 31. Rxb7 Re1+ 32. Kg2 Qe4 33. Qxe4 (33. Rxa7 $2 {perishes.} Rg1+ 34. Kxg1 Qxf3 $19) 33... fxe4 34. Rxa7 Re2 $18) 29... Kg7 {[%emt 0:00:35]} 30. Rxb4 {[%emt 0:00:08]} ({Not} 30. Qxh5 Nd5 31. Rxa7 Rb8 $11) 30... b5 {[%emt 0:01:41]} 31. d5 {[%emt 0:02:07]} Kxh6 {[%emt 0:01:24]} 32. dxe6 {[%emt 0:01:20]} Re7 {[%emt 0:01:31]} 33. Rf4 {[%emt 0:00:06]} Qg6 {[%emt 0:01:46]} 34. Qxc6 {[%emt 0:00:24]} f5 {[%emt 0:00:41]} 35. Qxb5 {[%emt 0:03:16]} (35. Qc5 $142 Qg7 36. Rxf5 Rxf5 37. Qxf5) 35... Rxe6 {[%emt 0:00:31]} 36. Rxe6 {[%emt 0:00:13]} Qxe6 {[%emt 0:00:06]} 37. Ra4 {[%emt 0:00:17]} Rf6 {[%emt 0:01:46]} 38. Rxa7 {[%emt 0:00:18] [#] Qb8 is the strong threat.} Rg6 {[%emt 0:00:23]} (38... Qe1+ $18 39. Qf1 Qxf1+ 40. Kxf1 f4 41. gxf4 Kg6) 39. Qb8 {[%emt 0:05:30][%cal Rb8h8]} Rxg3+ {[%emt 0:03:26]} 40. Qxg3 {[%emt 0:00:13] Weighted Error Value: White=0.32/Black=0.54.  Mistake:       	White=2     	Black=5      Inaccurate:     	White=1     	Black=3      OK:         	White=17    	Black=8      Best:        	White=3     	Black=1} ({Worse is} 40. fxg3 Qe1+ 41. Kg2 Qe2+ 42. Kg1 Qe1+ 43. Kg2 Qe2+ 44. Kg1 Qe1+ $11) 1-0

[Event "Catalonia Championship Absolut"]
[Site "Salou Tarragona"]
[Date "2024.05.11"]
[Round "1.1"]
[White "Garcia Ramos, Daniel"]
[Black "Cervello Tost, Ferran"]
[Result "*"]
[ECO "B12"]
[WhiteElo "2406"]
[BlackElo "2316"]
[Annotator "RC"]
[PlyCount "23"]
[EventDate "2024.05.06"]
[EventType "k.o."]
[EventCountry "ESP"]
[SourceTitle "playchess.com"]
[Source "ChessBase"]
[SourceQuality "1"]
[TimeControl "5400+30"]

1. e4 {[%emt 0:00:05]} c6 {[%emt 0:00:09]} 2. d4 {[%emt 0:00:13]} d5 {[%emt 1:31:21]} 3. e5 {[%emt 0:00:14]} a6 {[%emt 0:00:15]} 4. c4 {[%emt 0:05:24]} Bf5 {[%emt 0:00:14]} 5. Nc3 {[%emt 0:00:32]} e6 {[%emt 0:00:48]} 6. h4 {[%emt 0:06:11]} h5 {[%emt 0:04:04]} 7. Nf3 {[%emt 0:05:29]} Bg4 {[%emt 0:06:20]} 8. Be3 {[%emt 0:10:04]} Ne7 {[%emt 0:09:39]} 9. Rc1 {[%emt 0:08:58]} Nf5 {[%emt 0:07:18]} 10. Qb3 {[%emt 0:02:17]} Nxe3 {[%emt 0:10:47]} 11. fxe3 {[%emt 0:18:43]} Nd7 {[%emt 0:03:13]} 12. Qxb7 {[%emt 0:38:20]} *

[Event "Catalonia Championship Absolut"]
[Site "Salou Tarragona"]
[Date "2024.05.11"]
[Round "1.1"]
[White "Salinas Tomas, Daniel"]
[Black "Ribera Veganzones, Serni"]
[Result "1/2-1/2"]
[ECO "C07"]
[WhiteElo "2370"]
[BlackElo "2341"]
[Annotator "ChessBase"]
[PlyCount "47"]
[EventDate "2024.05.06"]
[EventType "k.o."]
[EventCountry "ESP"]
[SourceTitle "playchess.com"]
[Source "ChessBase"]
[SourceQuality "1"]
[TimeControl "5400+30"]

1. e4 {[%emt 0:00:09]} e6 {[%emt 0:00:07]} 2. d4 {[%emt 0:00:19]} d5 {[%emt 0:00:08]} 3. Nd2 {[%emt 0:00:09]} c5 {[%emt 0:00:15]} 4. Ngf3 {[%emt 0:00:28]} cxd4 {[%emt 0:00:22]} 5. Nxd4 {[%emt 0:00:11]} Nc6 {[%emt 0:00:13]} 6. Bb5 {[%emt 0:02:08]} Bd7 {[%emt 0:00:10]} 7. Nxc6 {[%emt 0:00:19]} bxc6 {[%emt 0:00:09]} 8. Bd3 {[%emt 0:00:18]} Bd6 {[%emt 0:00:35]} 9. c4 {[%emt 0:02:35]} Nf6 {[%emt 0:03:38]} 10. Qe2 {[%emt 0:01:53]} Qc7 {[%emt 0:01:18]} 11. h3 {[%emt 0:13:34]} O-O {[%emt 0:00:40]} 12. O-O {[%emt 0:01:15]} dxe4 {[%emt 1:28:55]} 13. Nxe4 {[%emt 0:01:19]} Nxe4 {[%emt 0:00:00]} 14. Bxe4 {[%emt 0:00:12]} f5 {[%emt 0:00:00]} 15. Bc2 {[%emt 0:00:29]} e5 {[%emt 0:00:00]} 16. Rd1 {[%emt 0:07:58]} Be6 {[%emt 0:00:00]} 17. b3 {[%emt 0:10:42]} e4 {[%emt 0:00:00]} 18. Bb2 {[%emt 0:01:42]} Rad8 {[%emt 0:00:00]} 19. Rd2 {[%emt 0:07:54]} Bh2+ {[%emt 0:00:00]} 20. Kh1 {[%emt 0:00:37]} Bf4 {[%emt 0:00:00]} 21. Rxd8 {[%emt 0:00:09]} Rxd8 {[%emt 0:00:00]} 22. Rd1 {[%emt 0:00:17]} Rxd1+ {[%emt 0:00:00]} 23. Qxd1 {[%emt 0:00:28]} Be5 {[%emt 0:00:00]} 24. Bc1 {[%emt 0:11:23]} 1/2-1/2

[Event "Catalonia Championship Absolut"]
[Site "Salou Tarragona"]
[Date "2024.05.11"]
[Round "1.1"]
[White "Lacasa Diaz, Josep Anton"]
[Black "Mas Recorda, Pere"]
[Result "1/2-1/2"]
[ECO "C02"]
[WhiteElo "2335"]
[BlackElo "1932"]
[Annotator "ChessBase"]
[PlyCount "60"]
[EventDate "2024.05.06"]
[EventType "k.o."]
[EventCountry "ESP"]
[SourceTitle "playchess.com"]
[Source "ChessBase"]
[SourceQuality "1"]
[TimeControl "5400+30"]

1. e4 {[%emt 0:00:04]} e6 {[%emt 0:00:15]} 2. d4 {[%emt 0:00:26]} d5 {[%emt 0:00:18]} 3. e5 {[%emt 0:00:53]} c5 {[%emt 0:00:26]} 4. c3 {[%emt 0:00:05]} Nc6 {[%emt 0:00:19]} 5. Nf3 {[%emt 0:00:09]} Qb6 {[%emt 0:00:30]} 6. a3 {[%emt 0:00:18]} Nh6 {[%emt 0:00:59]} 7. Bd3 {[%emt 0:04:02]} cxd4 {[%emt 0:00:57]} 8. O-O {[%emt 0:00:29]} Nf5 {[%emt 0:01:43]} 9. b4 {[%emt 0:00:54]} Be7 {[%emt 0:02:35]} 10. Bb2 {[%emt 0:03:21]} Bd7 {[%emt 0:01:29]} 11. Bxf5 {[%emt 0:02:18]} exf5 {[%emt 0:00:22]} 12. cxd4 {[%emt 0:00:07]} O-O {[%emt 0:01:07]} 13. Nc3 {[%emt 0:00:32]} Be6 {[%emt 0:00:13]} 14. Qd3 {[%emt 0:00:34]} Rfc8 {[%emt 0:17:12]} 15. Rfc1 {[%emt 0:03:48]} Qd8 {[%emt 0:02:03]} 16. Ne2 {[%emt 0:22:39]} Qd7 {[%emt 0:02:48]} 17. Nf4 {[%emt 0:08:49]} Nd8 {[%emt 0:04:11]} 18. h4 {[%emt 0:04:07]} Rxc1+ {[%emt 0:02:17]} 19. Bxc1 {[%emt 0:00:24]} Rc8 {[%emt 0:00:16]} 20. Bd2 {[%emt 0:17:56]} Rc4 {[%emt 0:15:41]} 21. Nh5 {[%emt 0:04:09]} Kh8 {[%emt 0:45:19]} 22. Qe3 {[%emt 0:07:40]} Bf8 {[%emt 0:00:00]} 23. Qf4 {[%emt 0:00:40]} Nc6 {[%emt 0:00:00]} 24. Be3 {[%emt 0:01:59]} Ne7 {[%emt 0:00:00]} 25. Qg3 {[%emt 0:02:13]} Ng8 {[%emt 0:00:00]} 26. Nf4 {[%emt 0:02:39]} h6 {[%emt 0:00:00]} 27. h5 {[%emt 0:00:30]} Rc8 {[%emt 0:00:00]} 28. Nd3 {[%emt 0:03:13]} b6 {[%emt 0:00:00]} 29. a4 {[%emt 0:00:41]} Qc6 {[%emt 0:00:00]} 30. Bd2 {[%emt 0:02:21]} Qc2 {[%emt 0:00:00]} 1/2-1/2

[Event "Catalonia Championship Absolut"]
[Site "Salou Tarragona"]
[Date "2024.05.11"]
[Round "1.1"]
[White "Buxade Roca, Guillermo"]
[Black "Torrecillas Martinez, Antonio"]
[Result "0-1"]
[ECO "C00"]
[WhiteElo "1916"]
[BlackElo "2298"]
[Annotator "ChessBase"]
[PlyCount "54"]
[EventDate "2024.05.06"]
[EventType "k.o."]
[EventCountry "ESP"]
[SourceTitle "playchess.com"]
[Source "ChessBase"]
[SourceQuality "1"]
[TimeControl "5400+30"]

1. e4 {[%emt 0:00:13]} e6 {[%emt 0:00:07]} 2. g3 {[%emt 0:04:32]} d5 {[%emt 0:03:03]} 3. Bg2 {[%emt 0:00:22]} Nf6 {[%emt 0:03:22]} 4. e5 {[%emt 0:04:32]} Nfd7 {[%emt 0:00:08]} 5. Nf3 {[%emt 0:00:23]} c5 {[%emt 0:02:40]} 6. O-O {[%emt 0:00:32]} Nc6 {[%emt 0:04:05]} 7. Re1 {[%emt 0:00:49]} g5 {[%emt 0:11:51]} 8. d4 {[%emt 0:10:37]} g4 {[%emt 0:01:11]} 9. Ng5 {[%emt 0:07:40]} h6 {[%emt 0:04:57]} 10. Nxf7 {[%emt 0:07:40]} Kxf7 {[%emt 0:00:09]} 11. Qxg4 {[%emt 0:01:02]} Bg7 {[%emt 0:22:36]} 12. Nc3 {[%emt 0:09:40]} cxd4 {[%emt 0:42:21]} 13. Nxd5 {[%emt 0:10:13]} Ndxe5 {[%emt 0:00:00]} 14. Qh5+ {[%emt 0:03:35]} Kg8 {[%emt 0:00:00]} 15. Nf4 {[%emt 0:02:30]} Bd7 {[%emt 0:00:00]} 16. Nh3 {[%emt 0:07:16]} Qf6 {[%emt 0:00:00]} 17. Bf4 {[%emt 0:03:52]} Nf7 {[%emt 0:00:00]} 18. Re2 {[%emt 0:01:43]} e5 {[%emt 0:00:00]} 19. Bd2 {[%emt 0:00:48]} Qf5 {[%emt 0:00:00]} 20. Qxf5 {[%emt 0:10:34]} Bxf5 {[%emt 0:00:00]} 21. Be1 {[%emt 0:00:15]} Kh7 {[%emt 0:00:00]} 22. Be4 {[%emt 0:04:34]} Bxe4 {[%emt 0:00:00]} 23. Rxe4 {[%emt 0:00:12]} Rhe8 {[%emt 0:00:00]} 24. Kg2 {[%emt 0:00:48]} Rad8 {[%emt 0:00:00]} 25. Bd2 {[%emt 0:01:19]} Nd6 {[%emt 0:00:00]} 26. Re2 {[%emt 0:01:26]} d3 {[%emt 0:00:00]} 27. cxd3 {[%emt 0:00:29]} Nd4 {[%emt 0:00:00]} 0-1